Workbook

Sheet NSF5GPG
A1: Indirect Cost Categories:
AE2: Eff 7/1/2013
A3: 0.5 | C3: On-Campus Organized Research | AE3: Updated 7/5/2013
A4: 0.51 | C4: On Campus Instruction
A5: 0.32 | C5: On-Campus Other Sponsored Activities
A6: 0.26 | C6: Off-Campus All Programs
A8: Indirect Cost Rates: | G8: Fringe Benefit Rates:
E9: Year 1 | F9: 0.5 | H9: Faculty | J9: (FAC) | L9: 0.315
E10: Year 2 | F10: =+_YR1 -> 0.5 | H10: P&S | J10: (PS) | L10: 0.378
E11: Year 3 | F11: =+_YR1 -> 0.5 | H11: Merit | J11: (MERIT) | L11: 0.5
E12: Year 4 | F12: =+_YR1 -> 0.5 | H12: Graduate Student | J12: (GRAD) | L12: 0.13
E13: Year 5 | F13: =+_YR1 -> 0.5 | H13: Post Doc | J13: (POST) | L13: 0.23
H14: Undergraduate | J14: (UG) | L14: 0.046
H15: Hourly | J15: (HOUR) | L15: 0.12
A16: Enter the Number of Years for this proposal | G16: 1
A19: Enter PI's Name Here (yellow box)> > >
G21: SUMMARY | M21: YEAR 1 | V21: SUMMARY | AB21: YEAR 2 | AK21: SUMMARY | AQ21: YEAR 3 | AZ21: SUMMARY | BF21: YEAR 4 | BO21: SUMMARY | BU21: YEAR 5 | CD21: SUMMARY | CJ21: SUMMARY
G22: PROPOSAL BUDGET | L22: FOR NSF USE ONLY | V22: PROPOSAL BUDGET | AA22: FOR NSF USE ONLY | AK22: PROPOSAL BUDGET | AP22: FOR NSF USE ONLY | AZ22: PROPOSAL BUDGET | BE22: FOR NSF USE ONLY | BO22: PROPOSAL BUDGET | BT22: FOR NSF USE ONLY | CD22: PROPOSAL BUDGET | CI22: FOR NSF USE ONLY
A23: ORGANIZATION | K23: PROPOSAL NO. | M23: DURATION (MONTHS) | P23: ORGANIZATION | Z23: PROPOSAL NO. | AB23: DURATION (MONTHS) | AE23: ORGANIZATION | AO23: PROPOSAL NO. | AQ23: DURATION (MONTHS) | AT23: ORGANIZATION | BD23: PROPOSAL NO. | BF23: DURATION (MONTHS) | BI23: ORGANIZATION | BS23: PROPOSAL NO. | BU23: DURATION (MONTHS) | BX23: ORGANIZATION | CH23: PROPOSAL NO. | CJ23: DURATION (MONTHS)
E24: IOWA STATE UNIVERSITY | M24: Proposed | N24: Granted | T24: IOWA STATE UNIVERSITY | AB24: Proposed | AC24: Granted | AI24: IOWA STATE UNIVERSITY | AQ24: Proposed | AR24: Granted | AX24: IOWA STATE UNIVERSITY | BF24: Proposed | BG24: Granted | BM24: IOWA STATE UNIVERSITY | BU24: Proposed | BV24: Granted | CB24: IOWA STATE UNIVERSITY | CJ24: Proposed | CK24: Granted
A25: PRINCIPAL INVESTIGATOR/PROJECT DIRECTOR | K25: AWARD NO. | P25: PRINCIPAL INVESTIGATOR/PROJECT DIRECTOR | Z25: AWARD NO. | AE25: PRINCIPAL INVESTIGATOR/PROJECT DIRECTOR | AO25: AWARD NO. | AT25: PRINCIPAL INVESTIGATOR/PROJECT DIRECTOR | BD25: AWARD NO. | BI25: PRINCIPAL INVESTIGATOR/PROJECT DIRECTOR | BS25: AWARD NO. | BX25: PRINCIPAL INVESTIGATOR/PROJECT DIRECTOR | CH25: AWARD NO.
E26: =G19 -> 0 | T26: =E26 -> 0 | AI26: =E26 -> 0 | AX26: =T26 -> 0 | BM26: =AI26 -> 0 | CB26: =E26 -> 0
A27: A. SENIOR PERSONNEL: PI/PD, Co.-PI's, Faculty and Other Senior Associates | J27: NSF Funded | M27: Funds | N27: Funds | P27: A. SENIOR PERSONNEL: PI/PD, Co.-PI's, Faculty and Other Senior Associates | Y27: NSF Funded | AB27: Funds | AC27: Funds | AE27: A. SENIOR PERSONNEL: PI/PD, Co.-PI's, Faculty and Other Senior Associates | AN27: NSF Funded | AQ27: Funds | AR27: Funds | AT27: A. SENIOR PERSONNEL: PI/PD, Co.-PI's, Faculty and Other Senior Associates | BC27: NSF Funded | BF27: Funds | BG27: Funds | BI27: A. SENIOR PERSONNEL: PI/PD, Co.-PI's, Faculty and Other Senior Associates | BR27: NSF Funded | BU27: Funds | BV27: Funds | BX27: A. SENIOR PERSONNEL: PI/PD, Co.-PI's, Faculty and Other Senior Associates | CG27: NSF Funded | CJ27: Funds | CK27: Funds
A28: (List each separately with title, A.7. show number in brackets) | J28: Person-mos. | M28: Requested by | N28: Granted By NSF | P28: (List each separately with title, A.7. show number in brackets) | Y28: Person-mos. | AB28: Requested by | AC28: Granted By NSF | AE28: (List each separately with title, A.7. show number in brackets) | AN28: Person-mos. | AQ28: Requested by | AR28: Granted By NSF | AT28: (List each separately with title, A.7. show number in brackets) | BC28: Person-mos. | BF28: Requested by | BG28: Granted By NSF | BI28: (List each separately with title, A.7. show number in brackets) | BR28: Person-mos. | BU28: Requested by | BV28: Granted By NSF | BX28: (List each separately with title, A.7. show number in brackets) | CG28: Person-mos. | CJ28: Requested by | CK28: Granted By NSF
J29: CAL | K29: ACAD | L29: SUMR | M29: Proposer | N29: (If Different) | Y29: CAL | Z29: ACAD | AA29: SUMR | AB29: Proposer | AC29: (If Different) | AN29: CAL | AO29: ACAD | AP29: SUMR | AQ29: Proposer | AR29: (If Different) | BC29: CAL | BD29: ACAD | BE29: SUMR | BF29: Proposer | BG29: (If Different) | BR29: CAL | BS29: ACAD | BT29: SUMR | BU29: Proposer | BV29: (If Different) | CG29: CAL | CH29: ACAD | CI29: SUMR | CJ29: Proposer | CK29: (If Different)
A30: 1. | E30: =E26 -> 0 | J30: 0 | K30: 0 | L30: 0 | M30: 0 | P30: 1. | T30: =E30 -> 0 | Y30: =IF(years>1,+J30,0) -> 0 | Z30: =IF(years>1,+K30,0) -> 0 | AA30: =IF(years>1,+L30,0) -> 0 | AB30: =ROUND(IF(years>1,M30*1.03,0),0) -> 0 | AE30: 1. | AI30: =E30 -> 0 | AN30: =IF(years>2,+Y30,0) -> 0 | AO30: 0 | AP30: 0 | AQ30: =ROUND(IF(years>2,AB30*1.03,0),0) -> 0 | AT30: 1. | AX30: =T30 -> 0 | BC30: =IF(years>3,+AN30,0) -> 0 | BD30: 0 | BE30: 0 | BF30: =ROUND(IF(years>3,AQ30*1.03,0),0) -> 0 | BI30: 1. | BM30: =AI30 -> 0 | BR30: =IF(years>4,+BC30,0) -> 0 | BS30: 0 | BT30: 0 | BU30: =ROUND(IF(years>4,BF30*1.03,0),0) -> 0 | BX30: 1. | CB30: =E30 -> 0 | CG30: =AN30+Y30+J30+BC30+BR30 -> 0 | CH30: 0 | CI30: 0 | CJ30: =AQ30+AB30+M30+BF30+BU30 -> 0
A31: 2. | J31: 0 | K31: 0 | L31: 0 | M31: 0 | P31: 2. | T31: =E31 -> 0 | Y31: 0 | Z31: 0 | AA31: 0 | AB31: 0 | AE31: 2. | AI31: =E31 -> 0 | AN31: 0 | AO31: 0 | AP31: 0 | AQ31: 0 | AT31: 2. | AX31: =T31 -> 0 | BC31: 0 | BD31: 0 | BE31: 0 | BF31: 0 | BI31: 2. | BM31: =AI31 -> 0 | BR31: 0 | BS31: 0 | BT31: 0 | BU31: 0 | BX31: 2. | CB31: =E31 -> 0 | CG31: 0 | CH31: 0 | CI31: 0 | CJ31: 0
A32: 3. | J32: 0 | K32: 0 | L32: 0 | M32: 0 | P32: 3. | T32: =E32 -> 0 | Y32: 0 | Z32: 0 | AA32: 0 | AB32: 0 | AE32: 3. | AI32: =E32 -> 0 | AN32: 0 | AO32: 0 | AP32: 0 | AQ32: 0 | AT32: 3. | AX32: =T32 -> 0 | BC32: 0 | BD32: 0 | BE32: 0 | BF32: 0 | BI32: 3. | BM32: =AI32 -> 0 | BR32: 0 | BS32: 0 | BT32: 0 | BU32: 0 | BX32: 3. | CB32: =E32 -> 0 | CG32: 0 | CH32: 0 | CI32: 0 | CJ32: 0
A33: 4. | J33: 0 | K33: 0 | L33: 0 | M33: 0 | P33: 4. | T33: =E33 -> 0 | Y33: 0 | Z33: 0 | AA33: 0 | AB33: 0 | AE33: 4. | AI33: =E33 -> 0 | AN33: 0 | AO33: 0 | AP33: 0 | AQ33: 0 | AT33: 4. | AX33: =T33 -> 0 | BC33: 0 | BD33: 0 | BE33: 0 | BF33: 0 | BI33: 4. | BM33: =AI33 -> 0 | BR33: 0 | BS33: 0 | BT33: 0 | BU33: 0 | BX33: 4. | CB33: =E33 -> 0 | CG33: 0 | CH33: 0 | CI33: 0 | CJ33: 0
A34: 5. | J34: 0 | K34: 0 | L34: 0 | M34: 0 | P34: 5. | T34: =E34 -> 0 | Y34: 0 | Z34: 0 | AA34: 0 | AB34: 0 | AE34: 5. | AI34: =E34 -> 0 | AN34: 0 | AO34: 0 | AP34: 0 | AQ34: 0 | AT34: 5. | AX34: =T34 -> 0 | BC34: 0 | BD34: 0 | BE34: 0 | BF34: 0 | BI34: 5. | BM34: =AI34 -> 0 | BR34: 0 | BS34: 0 | BT34: 0 | BU34: 0 | BX34: 5. | CB34: =E34 -> 0 | CG34: 0 | CH34: 0 | CI34: 0 | CJ34: 0
A35: 6. | B35: ( | C35: 0 | D35: ) | E35: OTHERS (LIST INDIVIDUALLY ON BUDGET EXPLANATION PAGE) | J35: 0 | K35: 0 | L35: 0 | M35: 0 | P35: 6. | Q35: ( | R35: =IF(years>1,+C35,0) -> 0 | S35: ) | T35: OTHERS (LIST INDIVIDUALLY ON BUDGET EXPLANATION PAGE) | Y35: 0 | Z35: 0 | AA35: 0 | AB35: 0 | AE35: 6. | AF35: ( | AG35: =IF(years>2,+R35,0) -> 0 | AH35: ) | AI35: OTHERS (LIST INDIVIDUALLY ON BUDGET EXPLANATION PAGE) | AN35: 0 | AO35: 0 | AP35: 0 | AQ35: 0 | AT35: 6. | AU35: ( | AV35: =IF(years>3,+AG35,0) -> 0 | AW35: ) | AX35: OTHERS (LIST INDIVIDUALLY ON BUDGET EXPLANATION PAGE) | BC35: 0 | BD35: 0 | BE35: 0 | BF35: 0 | BI35: 6. | BJ35: ( | BK35: =IF(years>4,+AV35,0) -> 0 | BL35: ) | BM35: OTHERS (LIST INDIVIDUALLY ON BUDGET EXPLANATION PAGE) | BR35: 0 | BS35: 0 | BT35: 0 | BU35: 0 | BX35: 6. | BY35: ( | BZ35: =AG35+R35+C35+AV35+BK35 -> 0 | CA35: ) | CB35: OTHERS (LIST INDIVIDUALLY ON BUDGET EXPLANATION PAGE) | CG35: 0 | CH35: 0 | CI35: 0 | CJ35: 0
A36: 7. | B36: ( | C36: 0 | D36: ) | E36: TOTAL SENIOR PERSONNEL (1-6) | J36: =SUM(J30:J35) -> 0 | K36: =SUM(K30:K35) -> 0 | L36: =SUM(L30:L35) -> 0 | M36: =SUM(M30:M35) -> 0 | P36: 7. | Q36: ( | R36: =IF(years>1,+C36,0) -> 0 | S36: ) | T36: TOTAL SENIOR PERSONNEL (1-6) | Y36: =SUM(Y30:Y35) -> 0 | Z36: =SUM(Z30:Z35) -> 0 | AA36: =SUM(AA30:AA35) -> 0 | AB36: =SUM(AB30:AB35) -> 0 | AE36: 7. | AF36: ( | AG36: =IF(years>2,+R36,0) -> 0 | AH36: ) | AI36: TOTAL SENIOR PERSONNEL (1-6) | AN36: =SUM(AN30:AN35) -> 0 | AO36: =SUM(AO30:AO35) -> 0 | AP36: =SUM(AP30:AP35) -> 0 | AQ36: =SUM(AQ30:AQ35) -> 0 | AT36: 7. | AU36: ( | AV36: =IF(years>3,+AG36,0) -> 0 | AW36: ) | AX36: TOTAL SENIOR PERSONNEL (1-6) | BC36: =SUM(BC30:BC35) -> 0 | BD36: =SUM(BD30:BD35) -> 0 | BE36: =SUM(BE30:BE35) -> 0 | BF36: =SUM(BF30:BF35) -> 0 | BI36: 7. | BJ36: ( | BK36: =IF(years>4,+AV36,0) -> 0 | BL36: ) | BM36: TOTAL SENIOR PERSONNEL (1-6) | BR36: =SUM(BR30:BR35) -> 0 | BS36: =SUM(BS30:BS35) -> 0 | BT36: =SUM(BT30:BT35) -> 0 | BU36: =SUM(BU30:BU35) -> 0 | BX36: 7. | BY36: ( | BZ36: =AG36+R36+C36+AV36+BK36 -> 0 | CA36: ) | CB36: TOTAL SENIOR PERSONNEL (1-6) | CG36: =SUM(CG30:CG35) -> 0 | CH36: =SUM(CH30:CH35) -> 0 | CI36: =SUM(CI30:CI35) -> 0 | CJ36: 0
A37: B. OTHER PERSONNEL (SHOW NUMBERS IN BRACKETS) | P37: B. OTHER PERSONNEL (SHOW NUMBERS IN BRACKETS) | AE37: B. OTHER PERSONNEL (SHOW NUMBERS IN BRACKETS) | AT37: B. OTHER PERSONNEL (SHOW NUMBERS IN BRACKETS) | BI37: B. OTHER PERSONNEL (SHOW NUMBERS IN BRACKETS) | BX37: B. OTHER PERSONNEL (SHOW NUMBERS IN BRACKETS)
A38: 1. | B38: ( | C38: 0 | D38: ) | E38: POST DOCTORAL ASSOCIATES | J38: 0 | K38: 0 | L38: 0 | M38: 0 | P38: 1. | Q38: ( | R38: =IF(years>1,+C38,0) -> 0 | S38: ) | T38: POST DOCTORAL ASSOCIATES | Y38: =IF(years>1,+J38,0) -> 0 | Z38: =IF(years>1,+K38,0) -> 0 | AA38: =IF(years>1,+L38,0) -> 0 | AB38: =ROUND(IF(years>1,M38*1.03,0),0) -> 0 | AE38: 1. | AF38: ( | AG38: =IF(years>2,+R38,0) -> 0 | AH38: ) | AI38: POST DOCTORAL ASSOCIATES | AN38: =IF(years>2,+Y38,0) -> 0 | AO38: =IF(years>2,+Z38,0) -> 0 | AP38: =IF(years>2,+AA38,0) -> 0 | AQ38: =ROUND(IF(years>2,AB38*1.03,0),0) -> 0 | AT38: 1. | AU38: ( | AV38: =IF(years>3,+AG38,0) -> 0 | AW38: ) | AX38: POST DOCTORAL ASSOCIATES | BC38: =IF(years>3,+AN38,0) -> 0 | BD38: =IF(years>3,+AO38,0) -> 0 | BE38: =IF(years>3,+AP38,0) -> 0 | BF38: =ROUND(IF(years>3,AQ38*1.03,0),0) -> 0 | BI38: 1. | BJ38: ( | BK38: =IF(years>4,+AV38,0) -> 0 | BL38: ) | BM38: POST DOCTORAL ASSOCIATES | BR38: =IF(years>4,+BC38,0) -> 0 | BS38: =IF(years>4,+BD38,0) -> 0 | BT38: =IF(years>4,+BE38,0) -> 0 | BU38: =ROUND(IF(years>4,BF38*1.03,0),0) -> 0 | BX38: 1. | BY38: ( | BZ38: =AG38+R38+C38+AV38+BK38 -> 0 | CA38: ) | CB38: POST DOCTORAL ASSOCIATES | CG38: =AN38+Y38+J38+BC38+BR38 -> 0 | CH38: =AO38+Z38+K38+BD38+BS38 -> 0 | CI38: =AP38+AA38+L38+BE38+BT38 -> 0 | CJ38: =AQ38+AB38+M38+BF38+BU38 -> 0
A39: 2. | B39: ( | C39: 0 | D39: ) | E39: OTHER PROFESSIONALS (TECHNICIAN, PROGRAMMER, ETC.) | M39: 0 | P39: 2. | Q39: ( | R39: =IF(years>1,+C39,0) -> 0 | S39: ) | T39: OTHER PROFESSIONALS (TECHNICIAN, PROGRAMMER, ETC.) | AB39: 0 | AE39: 2. | AF39: ( | AG39: =IF(years>2,+R39,0) -> 0 | AH39: ) | AI39: OTHER PROFESSIONALS (TECHNICIAN, PROGRAMMER, ETC.) | AQ39: 0 | AT39: 2. | AU39: ( | AV39: =IF(years>3,+AG39,0) -> 0 | AW39: ) | AX39: OTHER PROFESSIONALS (TECHNICIAN, PROGRAMMER, ETC.) | BF39: 0 | BI39: 2. | BJ39: ( | BK39: =IF(years>4,+AV39,0) -> 0 | BL39: ) | BM39: OTHER PROFESSIONALS (TECHNICIAN, PROGRAMMER, ETC.) | BU39: 0 | BX39: 2. | BY39: ( | BZ39: 0 | CA39: ) | CB39: OTHER PROFESSIONALS (TECHNICIAN, PROGRAMMER, ETC.) | CJ39: 0
A40: 3. | B40: ( | C40: 0 | D40: ) | E40: GRADUATE STUDENTS | M40: 0 | P40: 3. | Q40: ( | R40: =IF(years>1,+grad1,0) -> 0 | S40: ) | T40: GRADUATE STUDENTS | AB40: 0 | AE40: 3. | AF40: ( | AG40: =IF(years>2,+grad1,0) -> 0 | AH40: ) | AI40: GRADUATE STUDENTS | AQ40: 0 | AT40: 3. | AU40: ( | AV40: =IF(years>3,+grad1,0) -> 0 | AW40: ) | AX40: GRADUATE STUDENTS | BF40: 0 | BI40: 3. | BJ40: ( | BK40: =IF(years>4,+grad1,0) -> 0 | BL40: ) | BM40: GRADUATE STUDENTS | BU40: 0 | BX40: 3. | BY40: ( | BZ40: 0 | CA40: ) | CB40: GRADUATE STUDENTS | CJ40: 0
A41: 4. | B41: ( | C41: 0 | D41: ) | E41: UNDERGRADUATE STUDENTS | M41: 0 | P41: 4. | Q41: ( | R41: =IF(years>1,+C41,0) -> 0 | S41: ) | T41: UNDERGRADUATE STUDENTS | AB41: 0 | AE41: 4. | AF41: ( | AG41: =IF(years>2,+R41,0) -> 0 | AH41: ) | AI41: UNDERGRADUATE STUDENTS | AQ41: 0 | AT41: 4. | AU41: ( | AV41: =IF(years>3,+AG41,0) -> 0 | AW41: ) | AX41: UNDERGRADUATE STUDENTS | BF41: 0 | BI41: 4. | BJ41: ( | BK41: =IF(years>4,+AV41,0) -> 0 | BL41: ) | BM41: UNDERGRADUATE STUDENTS | BU41: 0 | BX41: 4. | BY41: ( | BZ41: 0 | CA41: ) | CB41: UNDERGRADUATE STUDENTS | CJ41: 0
A42: 5. | B42: ( | C42: 0 | D42: ) | E42: SECRETARIAL - CLERICAL (IF CHARGED DIRECTLY) | M42: 0 | P42: 5. | Q42: ( | R42: =IF(years>1,+C42,0) -> 0 | S42: ) | T42: SECRETARIAL - CLERICAL (IF CHARGED DIRECTLY) | AB42: 0 | AE42: 5. | AF42: ( | AG42: =IF(years>2,+R42,0) -> 0 | AH42: ) | AI42: SECRETARIAL - CLERICAL (IF CHARGED DIRECTLY) | AQ42: 0 | AT42: 5. | AU42: ( | AV42: =IF(years>3,+AG42,0) -> 0 | AW42: ) | AX42: SECRETARIAL - CLERICAL (IF CHARGED DIRECTLY) | BF42: 0 | BI42: 5. | BJ42: ( | BK42: =IF(years>4,+AV42,0) -> 0 | BL42: ) | BM42: SECRETARIAL - CLERICAL (IF CHARGED DIRECTLY) | BU42: 0 | BX42: 5. | BY42: ( | BZ42: 0 | CA42: ) | CB42: SECRETARIAL - CLERICAL (IF CHARGED DIRECTLY) | CJ42: 0
A43: 6. | B43: ( | C43: 0 | D43: ) | E43: OTHER | M43: 0 | P43: 6. | Q43: ( | R43: =IF(years>1,+C43,0) -> 0 | S43: ) | T43: OTHER | AB43: 0 | AE43: 6. | AF43: ( | AG43: =IF(years>2,+R43,0) -> 0 | AH43: ) | AI43: OTHER | AQ43: 0 | AT43: 6. | AU43: ( | AV43: =IF(years>3,+AG43,0) -> 0 | AW43: ) | AX43: OTHER | BF43: 0 | BI43: 6. | BJ43: ( | BK43: =IF(years>4,+AV43,0) -> 0 | BL43: ) | BM43: OTHER | BU43: 0 | BX43: 6. | BY43: ( | BZ43: 0 | CA43: ) | CB43: OTHER | CJ43: 0
C44: TOTAL SALARIES AND WAGES (A + B) | M44: =SUM(M36:M43) -> 0 | R44: TOTAL SALARIES AND WAGES (A + B) | AB44: =SUM(AB36:AB43) -> 0 | AG44: TOTAL SALARIES AND WAGES (A + B) | AQ44: =SUM(AQ36:AQ43) -> 0 | AV44: TOTAL SALARIES AND WAGES (A + B) | BF44: =SUM(BF36:BF43) -> 0 | BK44: TOTAL SALARIES AND WAGES (A + B) | BU44: =SUM(BU36:BU43) -> 0 | BZ44: TOTAL SALARIES AND WAGES (A + B) | CJ44: 0
A45: C. FRINGE BENEFITS (IF CHARGED AS DIRECT COSTS) | M45: =ROUND(((+M36*FAC)+(M38*POST)+(M39*PS)+(M40*GRAD)+(M42*MERIT)+(M43*HOUR)+(M41*ug)),0) -> 0 | P45: C. FRINGE BENEFITS (IF CHARGED AS DIRECT COSTS) | AB45: =ROUND(((+AB36*FAC)+(AB38*POST)+(AB39*PS)+(AB40*GRAD)+(AB42*MERIT)+(AB43*HOUR)+(AB41*ug)),0) -> 0 | AE45: C. FRINGE BENEFITS (IF CHARGED AS DIRECT COSTS) | AQ45: =ROUND(((+AQ36*FAC)+(AQ38*POST)+(AQ39*PS)+(AQ40*GRAD)+(AQ42*MERIT)+(AQ43*HOUR)+(AQ41*ug)),0) -> 0 | AT45: C. FRINGE BENEFITS (IF CHARGED AS DIRECT COSTS) | BF45: =ROUND(((+BF36*FAC)+(BF38*POST)+(BF39*PS)+(BF40*GRAD)+(BF42*MERIT)+(BF43*HOUR)+(BF41*ug)),0) -> 0 | BI45: C. FRINGE BENEFITS (IF CHARGED AS DIRECT COSTS) | BU45: =ROUND(((+BU36*FAC)+(BU38*POST)+(BU39*PS)+(BU40*GRAD)+(BU42*MERIT)+(BU43*HOUR)+(BU41*ug)),0) -> 0 | BX45: C. FRINGE BENEFITS (IF CHARGED AS DIRECT COSTS) | CJ45: 0
C46: TOTAL SALARIES, WAGES AND FRINGE BENEFITS (A+B+C) | M46: =M45+M44 -> 0 | R46: TOTAL SALARIES, WAGES AND FRINGE BENEFITS (A+B+C) | AB46: =AB45+AB44 -> 0 | AG46: TOTAL SALARIES, WAGES AND FRINGE BENEFITS (A+B+C) | AQ46: =AQ45+AQ44 -> 0 | AV46: TOTAL SALARIES, WAGES AND FRINGE BENEFITS (A+B+C) | BF46: =BF45+BF44 -> 0 | BK46: TOTAL SALARIES, WAGES AND FRINGE BENEFITS (A+B+C) | BU46: =BU45+BU44 -> 0 | BZ46: TOTAL SALARIES, WAGES AND FRINGE BENEFITS (A+B+C) | CJ46: 0
A47: D. EQUIPMENT (LIST ITEM AND DOLLAR AMOUNT FOR EACH ITEM EXCEEDING $5,000.) | P47: D. EQUIPMENT (LIST ITEM AND DOLLAR AMOUNT FOR EACH ITEM EXCEEDING $5,000.) | AE47: D. EQUIPMENT (LIST ITEM AND DOLLAR AMOUNT FOR EACH ITEM EXCEEDING $5,000.) | AT47: D. EQUIPMENT (LIST ITEM AND DOLLAR AMOUNT FOR EACH ITEM EXCEEDING $5,000.) | BI47: D. EQUIPMENT (LIST ITEM AND DOLLAR AMOUNT FOR EACH ITEM EXCEEDING $5,000.) | BX47: D. EQUIPMENT (LIST ITEM AND DOLLAR AMOUNT FOR EACH ITEM EXCEEDING $5,000.)
C53: TOTAL EQUIPMENT | R53: TOTAL EQUIPMENT | AG53: TOTAL EQUIPMENT | AV53: TOTAL EQUIPMENT | BK53: TOTAL EQUIPMENT | BZ53: TOTAL EQUIPMENT | CJ53: =AQ53+AB53+M53+BF53+BU53 -> 0
A54: E. TRAVEL 1. DOMESTIC (INCL. CANADA AND U.S. POSSESSIONS) | P54: E. TRAVEL 1. DOMESTIC (INCL. CANADA AND U.S. POSSESSIONS) | AE54: E. TRAVEL 1. DOMESTIC (INCL. CANADA AND U.S. POSSESSIONS) | AT54: E. TRAVEL 1. DOMESTIC (INCL. CANADA AND U.S. POSSESSIONS) | BI54: E. TRAVEL 1. DOMESTIC (INCL. CANADA AND U.S. POSSESSIONS) | BX54: E. TRAVEL 1. DOMESTIC (INCL. CANADA AND U.S. POSSESSIONS) | CJ54: =AQ54+AB54+M54+BF54+BU54 -> 0
A55: 2. FOREIGN | P55: 2. FOREIGN | AE55: 2. FOREIGN | AT55: 2. FOREIGN | BI55: 2. FOREIGN | BX55: 2. FOREIGN | CJ55: =AQ55+AB55+M55+BF55+BU55 -> 0
A58: F. PARTICIPANT SUPPORT COSTS | P58: F. PARTICIPANT SUPPORT COSTS | AE58: F. PARTICIPANT SUPPORT COSTS | AT58: F. PARTICIPANT SUPPORT COSTS | BI58: F. PARTICIPANT SUPPORT COSTS | BX58: F. PARTICIPANT SUPPORT COSTS
A59: 1. STIPENDS | P59: 1. STIPENDS | AE59: 1. STIPENDS | AT59: 1. STIPENDS | BI59: 1. STIPENDS | BX59: 1. STIPENDS | CC59: =SUM(AJ59,U59,F59,AY59,BN59) -> 0
A60: 2. TRAVEL | P60: 2. TRAVEL | AE60: 2. TRAVEL | AT60: 2. TRAVEL | BI60: 2. TRAVEL | BX60: 2. TRAVEL | CC60: =SUM(AJ60,U60,F60,AY60,BN60) -> 0
A61: 3. SUBSISTENCE | P61: 3. SUBSISTENCE | AE61: 3. SUBSISTENCE | AT61: 3. SUBSISTENCE | BI61: 3. SUBSISTENCE | BX61: 3. SUBSISTENCE | CC61: =SUM(AJ61,U61,F61,AY61,BN61) -> 0
A62: 4. OTHER | P62: 4. OTHER | AE62: 4. OTHER | AT62: 4. OTHER | BI62: 4. OTHER | BX62: 4. OTHER | CC62: =SUM(AJ62,U62,F62,AY62,BN62) -> 0
A64: ( | C64: ) TOTAL PARTICIPANT COSTS | M64: =SUM(F59:F62) -> 0 | P64: ( | R64: ) TOTAL PARTICIPANT COSTS | AB64: =SUM(U59:U62) -> 0 | AE64: ( | AG64: ) TOTAL PARTICIPANT COSTS | AQ64: =SUM(AJ59:AJ62) -> 0 | AT64: ( | AV64: ) TOTAL PARTICIPANT COSTS | BF64: =SUM(AY59:AY62) -> 0 | BI64: ( | BK64: ) TOTAL PARTICIPANT COSTS | BU64: =SUM(BN59:BN62) -> 0 | BX64: ( | BZ64: ) TOTAL PARTICIPANT COSTS | CJ64: =AQ64+AB64+M64+BF64+BU64 -> 0
A65: G. OTHER DIRECT COSTS | P65: G. OTHER DIRECT COSTS | AE65: G. OTHER DIRECT COSTS | AT65: G. OTHER DIRECT COSTS | BI65: G. OTHER DIRECT COSTS | BX65: G. OTHER DIRECT COSTS
A66: 1. MATERIALS AND SUPPLIES | P66: 1. MATERIALS AND SUPPLIES | AE66: 1. MATERIALS AND SUPPLIES | AT66: 1. MATERIALS AND SUPPLIES | BI66: 1. MATERIALS AND SUPPLIES | BX66: 1. MATERIALS AND SUPPLIES | CJ66: =AQ66+AB66+M66+BF66+BU66 -> 0
A67: 2. PUBLICATION COSTS/DOCUMENTATION/DISSEMINATION | P67: 2. PUBLICATION COSTS/DOCUMENTATION/DISSEMINATION | AE67: 2. PUBLICATION COSTS/DOCUMENTATION/DISSEMINATION | AT67: 2. PUBLICATION COSTS/DOCUMENTATION/DISSEMINATION | BI67: 2. PUBLICATION COSTS/DOCUMENTATION/DISSEMINATION | BX67: 2. PUBLICATION COSTS/DOCUMENTATION/DISSEMINATION | CJ67: 0
A68: 3. CONSULTANT SERVICES | F68: [maximum allowable rate @ http://www.nsf.gov/bfa/dias/policy/] | P68: 3. CONSULTANT SERVICES | AE68: 3. CONSULTANT SERVICES | AT68: 3. CONSULTANT SERVICES | BI68: 3. CONSULTANT SERVICES | BX68: 3. CONSULTANT SERVICES | CJ68: 0
A69: 4. COMPUTER SERVICES | P69: 4. COMPUTER SERVICES | AE69: 4. COMPUTER SERVICES | AT69: 4. COMPUTER SERVICES | BI69: 4. COMPUTER SERVICES | BX69: 4. COMPUTER SERVICES | CJ69: 0
A70: 5. SUBAWARDS | K70: Amount subject to Indirect: | P70: 5. SUBAWARDS | Z70: Amount subject to Indirect: | AA70: 0 | AE70: 5. SUBAWARDS | AO70: Amount subject to Indirect: | AP70: 0 | AT70: 5. SUBAWARDS | BD70: Amount subject to Indirect: | BE70: 0 | BI70: 5. SUBAWARDS | BS70: Amount subject to Indirect: | BT70: 0 | BX70: 5. SUBAWARDS | CH70: Amount subject to Indirect: | CI70: =L70+AA70+AP70+BE70+BT70 -> 0 | CJ70: 0
A71: 6. OTHER | E71: Sum of all other Direct Costs, NOT tuition = | K71: Tuition = | L71: =Tuition!K6+Tuition!K26 -> 0 | M71: =H71+L71 -> 0 | P71: 6. OTHER | T71: Sum of all other Direct Costs, NOT tuition = | Z71: Tuition = | AA71: =Tuition!M6+Tuition!M26 -> 0 | AB71: =+AA71+W71 -> 0 | AE71: 6. OTHER | AI71: Sum of all other Direct Costs, NOT tuition = | AO71: Tuition = | AP71: =Tuition!O6+Tuition!O26 -> 0 | AQ71: =+AP71+AL71 -> 0 | AT71: 6. OTHER | AX71: Sum of all other Direct Costs, NOT tuition = | BD71: Tuition = | BE71: =Tuition!Q6+Tuition!Q26 -> 0 | BF71: =+BE71+BA71 -> 0 | BI71: 6. OTHER | BM71: Sum of all other Direct Costs, NOT tuition = | BS71: Tuition = | BT71: =Tuition!S6+Tuition!S26 -> 0 | BU71: =+BT71+BP71 -> 0 | BX71: 6. OTHER | CH71: Tuition = | CI71: 0 | CJ71: 0
E72: TOTAL OTHER DIRECT COSTS | M72: =SUM(M66:M71) -> 0 | T72: TOTAL OTHER DIRECT COSTS | AB72: =SUM(AB66:AB71) -> 0 | AI72: TOTAL OTHER DIRECT COSTS | AQ72: =SUM(AQ66:AQ71) -> 0 | AX72: TOTAL OTHER DIRECT COSTS | BF72: =SUM(BF66:BF71) -> 0 | BM72: TOTAL OTHER DIRECT COSTS | BU72: =SUM(BU66:BU71) -> 0 | CB72: TOTAL OTHER DIRECT COSTS | CJ72: 0
A73: H. TOTAL DIRECT COSTS (A THROUGH G) | M73: =M72+M64+M55+M54+M53+M46 -> 0 | P73: H. TOTAL DIRECT COSTS (A THROUGH G) | AB73: =AB72+AB64+AB55+AB54+AB53+AB46 -> 0 | AE73: H. TOTAL DIRECT COSTS (A THROUGH G) | AQ73: =AQ72+AQ64+AQ55+AQ54+AQ53+AQ46 -> 0 | AT73: H. TOTAL DIRECT COSTS (A THROUGH G) | BF73: =BF72+BF64+BF55+BF54+BF53+BF46 -> 0 | BI73: H. TOTAL DIRECT COSTS (A THROUGH G) | BU73: =BU72+BU64+BU55+BU54+BU53+BU46 -> 0 | BX73: H. TOTAL DIRECT COSTS (A THROUGH G) | CJ73: 0
A74: I. INDIRECT COSTS (F&A) (SPECIFY RATE AND BASE) | P74: I. INDIRECT COSTS (F&A) (SPECIFY RATE AND BASE) | AE74: I. INDIRECT COSTS (F&A) (SPECIFY RATE AND BASE) | AT74: I. INDIRECT COSTS (F&A) (SPECIFY RATE AND BASE) | BI74: I. INDIRECT COSTS (F&A) (SPECIFY RATE AND BASE) | BX74: I. INDIRECT COSTS (F&A) (SPECIFY RATE AND BASE)
F76: =F9 -> 0.5 | G76: Modified Total Direct Costs | P76: 25% participant support IDC | U76: =_YR2 -> 0.5 | V76: Modified Total Direct Costs | AJ76: =_YR3 -> 0.5 | AK76: Modified Total Direct Costs | AY76: =_YR4 -> 0.5 | AZ76: Modified Total Direct Costs | BN76: =_YR5 -> 0.5 | BO76: Modified Total Direct Costs | CC76: =_YR1 -> 0.5 | CD76: Modified Total Direct Costs
A77: TOTAL INDIRECT COSTS (F&A) | K77: Base Amount: | L77: =+M73-L71-M53-M64+L70-M70 -> 0 | M77: =SUM(ROUND((L77*F76),0)) -> 0 | P77: TOTAL INDIRECT COSTS (F&A) | Z77: Base Amount: | AA77: =+AB73-AA71-AB53-AB64+AA70-AB70 -> 0 | AB77: =SUM(ROUND((AA77*U76),0)) -> 0 | AE77: TOTAL INDIRECT COSTS (F&A) | AO77: Base Amount: | AP77: =+AQ73-AP71-AQ53-AQ64+AP70-AQ70 -> 0 | AQ77: =SUM(ROUND((AP77*AJ76),0)) -> 0 | AT77: TOTAL INDIRECT COSTS (F&A) | BD77: Base Amount: | BE77: =+BF73-BE71-BF53-BF64+BE70-BF70 -> 0 | BF77: =SUM(ROUND((BE77*AY76),0)) -> 0 | BI77: TOTAL INDIRECT COSTS (F&A) | BS77: Base Amount: | BT77: =+BU73-BT71-BU53-BU64+BT70-BU70 -> 0 | BU77: =SUM(ROUND((BT77*BN76),0)) -> 0 | BX77: TOTAL INDIRECT COSTS (F&A) | CJ77: =AQ77+AB77+M77+BF77+BU77 -> 0
A78: J. TOTAL DIRECT AND INDIRECT COSTS (H + I) | M78: =M77+M73 -> 0 | P78: J. TOTAL DIRECT AND INDIRECT COSTS (H + I) | AB78: =AB77+AB73 -> 0 | AE78: J. TOTAL DIRECT AND INDIRECT COSTS (H + I) | AQ78: =AQ77+AQ73 -> 0 | AT78: J. TOTAL DIRECT AND INDIRECT COSTS (H + I) | BF78: =BF77+BF73 -> 0 | BI78: J. TOTAL DIRECT AND INDIRECT COSTS (H + I) | BU78: =BU77+BU73 -> 0 | BX78: J. TOTAL DIRECT AND INDIRECT COSTS (H + I) | CJ78: =AQ78+AB78+M78+BF78+BU78 -> 0
A79: K. RESIDUAL FUNDS (IF FOR FURTHER SUPPORT OF CURRENT PROJECTS SEE GPG II.D.7.j.) | P79: K. RESIDUAL FUNDS (IF FOR FURTHER SUPPORT OF CURRENT PROJECTS SEE GPG II.D.7.j.) | AE79: K. RESIDUAL FUNDS (IF FOR FURTHER SUPPORT OF CURRENT PROJECTS SEE GPG II.D.7.j.) | AT79: K. RESIDUAL FUNDS (IF FOR FURTHER SUPPORT OF CURRENT PROJECTS SEE GPG II.D.7.j.) | BI79: K. RESIDUAL FUNDS (IF FOR FURTHER SUPPORT OF CURRENT PROJECTS SEE GPG II.D.7.j.) | BX79: K. RESIDUAL FUNDS (IF FOR FURTHER SUPPORT OF CURRENT PROJECTS SEE GPG II.D.7.j.) | CJ79: =AQ79+AB79+M79+BF79+BU79 -> 0
A80: L. AMOUNT OF THIS REQUEST (J) OR (J MINUS K) | M80: =M78 -> 0 | P80: L. AMOUNT OF THIS REQUEST (J) OR (J MINUS K) | AB80: =AB78 -> 0 | AE80: L. AMOUNT OF THIS REQUEST (J) OR (J MINUS K) | AQ80: =AQ78 -> 0 | AT80: L. AMOUNT OF THIS REQUEST (J) OR (J MINUS K) | BF80: =BF78 -> 0 | BI80: L. AMOUNT OF THIS REQUEST (J) OR (J MINUS K) | BU80: =BU78 -> 0 | BX80: L. AMOUNT OF THIS REQUEST (J) OR (J MINUS K) | CJ80: =AQ80+AB80+M80+BF80+BU80 -> 0
A81: M. COST SHARING: PROPOSED LEVEL $ | I81: AGREED LEVEL IF DIFFERENT $ | P81: M. COST SHARING: PROPOSED LEVEL $ | X81: AGREED LEVEL IF DIFFERENT $ | AE81: M. COST SHARING: PROPOSED LEVEL $ | AM81: AGREED LEVEL IF DIFFERENT $ | AT81: M. COST SHARING: PROPOSED LEVEL $ | BB81: AGREED LEVEL IF DIFFERENT $ | BI81: M. COST SHARING: PROPOSED LEVEL $ | BQ81: AGREED LEVEL IF DIFFERENT $ | BX81: M. COST SHARING: PROPOSED LEVEL $ | CD81: =AK81+V81+G81+AZ81+BO81 -> 0 | CF81: AGREED LEVEL IF DIFFERENT $
A82: PI/PD TYPED NAME & SIGNATURE* | I82: DATE | L82: FOR NSF USE ONLY | P82: PI/PD TYPED NAME & SIGNATURE* | Y82: DATE | AA82: FOR NSF USE ONLY | AE82: PI/PD TYPED NAME & SIGNATURE* | AN82: DATE | AP82: FOR NSF USE ONLY | AT82: PI/PD TYPED NAME & SIGNATURE* | BC82: DATE | BE82: FOR NSF USE ONLY | BI82: PI/PD TYPED NAME & SIGNATURE* | BR82: DATE | BT82: FOR NSF USE ONLY | BX82: PI/PD TYPED NAME & SIGNATURE* | CG82: DATE | CI82: FOR NSF USE ONLY
L84: INDIRECT COST RATE VERIFICATION | AA84: INDIRECT COST RATE VERIFICATION | AP84: INDIRECT COST RATE VERIFICATION | BE84: INDIRECT COST RATE VERIFICATION | BT84: INDIRECT COST RATE VERIFICATION | CI84: INDIRECT COST RATE VERIFICATION
A85: ORG. REP. TYPED NAME & SIGNATURE* | I85: DATE | L85: Date Checked | M85: Date of Rate Sheet | N85: Initials-ORG | P85: ORG. REP. TYPED NAME & SIGNATURE* | Y85: DATE | AA85: Date Checked | AB85: Date of Rate Sheet | AC85: Initials-ORG | AE85: ORG. REP. TYPED NAME & SIGNATURE* | AN85: DATE | AP85: Date Checked | AQ85: Date of Rate Sheet | AR85: Initials-ORG | AT85: ORG. REP. TYPED NAME & SIGNATURE* | BC85: DATE | BE85: Date Checked | BF85: Date of Rate Sheet | BG85: Initials-ORG | BI85: ORG. REP. TYPED NAME & SIGNATURE* | BR85: DATE | BT85: Date Checked | BU85: Date of Rate Sheet | BV85: Initials-ORG | BX85: ORG. REP. TYPED NAME & SIGNATURE* | CG85: DATE | CI85: Date Checked | CJ85: Date of Rate Sheet | CK85: Initials-ORG
A88: NSF Form 1030 (10/99) Supersedes All Previous Editions | I88: *SIGNATURES REQUIRED ONLY FOR REVISED BUDGET (GPG III.C) | P88: =A88 -> NSF Form 1030 (10/99) Supersedes All Previous Editions | X88: *SIGNATURES REQUIRED ONLY FOR REVISED BUDGET (GPG III.C) | AE88: =+A88 -> NSF Form 1030 (10/99) Supersedes All Previous Editions | AM88: *SIGNATURES REQUIRED ONLY FOR REVISED BUDGET (GPG III.C) | AT88: =+P88 -> NSF Form 1030 (10/99) Supersedes All Previous Editions | BB88: *SIGNATURES REQUIRED ONLY FOR REVISED BUDGET (GPG III.C) | BI88: =+AE88 -> NSF Form 1030 (10/99) Supersedes All Previous Editions | BQ88: *SIGNATURES REQUIRED ONLY FOR REVISED BUDGET (GPG III.C) | BX88: =+A88 -> NSF Form 1030 (10/99) Supersedes All Previous Editions | CF88: *SIGNATURES REQUIRED ONLY FOR REVISED BUDGET (GPG III.C)

Sheet Tuition
C1: Tuition Costs | K1: Year 1 | M1: Year 2 | O1: Year 3 | Q1: Year 4 | S1: Year 5
K3: Funds Requested | M3: Funds Requested | O3: Funds Requested | Q3: Funds Requested | S3: Funds Requested
A6: 8 | C6: Graduate Student Tuition (NON-ENGINEERING) | G6: select 1/4-time/1/2-time > > | I6: 1/2-time | K6: =ROUND(IF(I6="1/2-time",K7,K8),0) -> 0 | M6: =ROUND(IF(I6="1/2-time",M7,M8),0) -> 0 | O6: =ROUND(IF(I6="1/2-time",O7,O8),0) -> 0 | Q6: =ROUND(IF(I6="1/2-time",Q7,Q8),0) -> 0 | S6: =ROUND(IF(I6="1/2-time",S7,S8),0) -> 0
A7: 8 | C7: Graduate Student Tuition | I7: Maximum | K7: =+C13*VLOOKUP(K13,$I$53:$Q$109,5,FALSE)+C15*VLOOKUP(K15,$I$53:$Q$109,5,FALSE)+C17*VLOOKUP(K17,$I$53:$Q$109,5,FALSE)+C19*VLOOKUP(K19,$I$53:$Q$109,9,FALSE)+C21*VLOOKUP(K21,$I$53:$Q$109,9,FALSE)+C23*VLOOKUP(K23,$I$53:$Q$109,9,FALSE) -> 0 | M7: =+E13*VLOOKUP(M13,$I$53:$Q$109,5,FALSE)+E15*VLOOKUP(M15,$I$53:$Q$109,5,FALSE)+E17*VLOOKUP(M17,$I$53:$Q$109,5,FALSE)+E19*VLOOKUP(M19,$I$53:$Q$109,9,FALSE)+E21*VLOOKUP(M21,$I$53:$Q$109,9,FALSE)+E23*VLOOKUP(M23,$I$53:$Q$109,9,FALSE) -> 0 | O7: =+F13*VLOOKUP(O13,$I$53:$Q$109,5,FALSE)+F15*VLOOKUP(O15,$I$53:$Q$109,5,FALSE)+F17*VLOOKUP(O17,$I$53:$Q$109,5,FALSE)+F19*VLOOKUP(O19,$I$53:$Q$109,9,FALSE)+F21*VLOOKUP(O21,$I$53:$Q$109,9,FALSE)+F23*VLOOKUP(O23,$I$53:$Q$109,9,FALSE) -> 0 | Q7: =+G13*VLOOKUP(Q13,$I$53:$Q$109,5,FALSE)+G15*VLOOKUP(Q15,$I$53:$Q$109,5,FALSE)+G17*VLOOKUP(Q17,$I$53:$Q$109,5,FALSE)+G19*VLOOKUP(Q19,$I$53:$Q$109,9,FALSE)+G21*VLOOKUP(Q21,$I$53:$Q$109,9,FALSE)+G23*VLOOKUP(Q23,$I$53:$Q$109,9,FALSE) -> 0 | S7: =+H13*VLOOKUP(S13,$I$53:$Q$109,5,FALSE)+H15*VLOOKUP(S15,$I$53:$Q$109,5,FALSE)+H17*VLOOKUP(S17,$I$53:$Q$109,5,FALSE)+H19*VLOOKUP(S19,$I$53:$Q$109,9,FALSE)+H21*VLOOKUP(S21,$I$53:$Q$109,9,FALSE)+H23*VLOOKUP(S23,$I$53:$Q$109,9,FALSE) -> 0
A8: 8 | C8: Graduate Student Tuition | I8: Minimum | K8: =+C13*VLOOKUP(K13,$I$53:$Q$109,3,FALSE)+C15*VLOOKUP(K15,$I$53:$Q$109,3,FALSE)+C17*VLOOKUP(K17,$I$53:$Q$109,3,FALSE)+C19*VLOOKUP(K19,$I$53:$Q$109,7,FALSE)+C21*VLOOKUP(K21,$I$53:$Q$109,7,FALSE)+C23*VLOOKUP(K23,$I$53:$Q$109,7,FALSE) -> 0 | M8: =+E13*VLOOKUP(M13,$I$53:$Q$109,3,FALSE)+E15*VLOOKUP(M15,$I$53:$Q$109,3,FALSE)+E17*VLOOKUP(M17,$I$53:$Q$109,3,FALSE)+E19*VLOOKUP(M19,$I$53:$Q$109,7,FALSE)+E21*VLOOKUP(M21,$I$53:$Q$109,7,FALSE)+E23*VLOOKUP(M23,$I$53:$Q$109,7,FALSE) -> 0 | O8: =+F13*VLOOKUP(O13,$I$53:$Q$109,3,FALSE)+F15*VLOOKUP(O15,$I$53:$Q$109,3,FALSE)+F17*VLOOKUP(O17,$I$53:$Q$109,3,FALSE)+F19*VLOOKUP(O19,$I$53:$Q$109,7,FALSE)+F21*VLOOKUP(O21,$I$53:$Q$109,7,FALSE)+F23*VLOOKUP(O23,$I$53:$Q$109,7,FALSE) -> 0 | Q8: =+G13*VLOOKUP(Q13,$I$53:$Q$84,3,FALSE)+G15*VLOOKUP(Q15,$I$53:$Q$84,3,FALSE)+G17*VLOOKUP(Q17,$I$53:$Q$84,3,FALSE)+G19*VLOOKUP(Q19,$I$53:$Q$84,7,FALSE)+G21*VLOOKUP(Q21,$I$53:$Q$84,7,FALSE)+G23*VLOOKUP(Q23,$I$53:$Q$84,7,FALSE) -> 0 | S8: =+H13*VLOOKUP(S13,$I$53:$Q$84,3,FALSE)+H15*VLOOKUP(S15,$I$53:$Q$84,3,FALSE)+H17*VLOOKUP(S17,$I$53:$Q$84,3,FALSE)+H19*VLOOKUP(S19,$I$53:$Q$84,7,FALSE)+H21*VLOOKUP(S21,$I$53:$Q$84,7,FALSE)+H23*VLOOKUP(S23,$I$53:$Q$84,7,FALSE) -> 0
C11: NON-Engineering Students Only
C12: Year 1 | E12: Year 2 | F12: Year 3 | G12: Year 4 | H12: Year 5
A13: Masters Students (enter no. of students per term) | I13: Summer | K13: Summer 2012 | M13: Summer 2013 | O13: Summer 2014 | Q13: Summer 2015 | S13: Summer 2016
E15: 0 | F15: 0 | G15: 0 | H15: 0 | I15: Fall | K15: Fall 2012 | M15: Fall 2013 | O15: Fall 2014 | Q15: Fall 2015 | S15: Fall 2016
E17: 0 | F17: 0 | G17: 0 | H17: 0 | I17: Spring | K17: Spring 2012 | M17: Spring 2013 | O17: Spring 2014 | Q17: Spring 2015 | S17: Spring 2016
A19: PhD Students (enter no. of students per term) | I19: Summer | K19: Summer 2012 | M19: Summer 2013 | O19: Summer 2014 | Q19: Summer 2015 | S19: Summer 2016
I21: Fall | K21: Fall 2012 | M21: Fall 2013 | O21: Fall 2014 | Q21: Fall 2015 | S21: Fall 2016
I23: Spring | K23: Spring 2012 | M23: Spring 2013 | O23: Spring 2014 | Q23: Spring 2015 | S23: Spring 2016
A26: 8 | C26: Graduate Student Tuition (ENGINEERING) | G26: select 1/4-time/1/2-time > > | I26: 1/2-time | K26: =ROUND(IF($I$26="1/2-time",K27,K28),0) -> 0 | M26: =ROUND(IF($I$26="1/2-time",M27,M28),0) -> 0 | O26: =ROUND(IF($I$26="1/2-time",O27,O28),0) -> 0 | Q26: =ROUND(IF($I$26="1/2-time",Q27,Q28),0) -> 0 | S26: =ROUND(IF($I$26="1/2-time",S27,S28),0) -> 0
A27: 8 | C27: Graduate Student Tuition | I27: Maximum | K27: =+C33*VLOOKUP(K33,$I$83:$Q$109,5,FALSE)+C35*VLOOKUP(K35,$I$83:$Q$109,5,FALSE)+C37*VLOOKUP(K37,$I$83:$Q$109,5,FALSE)+C39*VLOOKUP(K39,$I$83:$Q$109,9,FALSE)+C41*VLOOKUP(K41,$I$83:$Q$109,9,FALSE)+C43*VLOOKUP(K43,$I$83:$Q$109,9,FALSE) -> 0 | M27: =+E33*VLOOKUP(M33,$I$83:$Q$109,5,FALSE)+E35*VLOOKUP(M35,$I$83:$Q$109,5,FALSE)+E37*VLOOKUP(M37,$I$83:$Q$109,5,FALSE)+E39*VLOOKUP(M39,$I$83:$Q$109,9,FALSE)+E41*VLOOKUP(M41,$I$83:$Q$109,9,FALSE)+E43*VLOOKUP(M43,$I$83:$Q$109,9,FALSE) -> 0 | O27: =+F33*VLOOKUP(O33,$I$83:$Q$109,5,FALSE)+F35*VLOOKUP(O35,$I$83:$Q$109,5,FALSE)+F37*VLOOKUP(O37,$I$83:$Q$109,5,FALSE)+F39*VLOOKUP(O39,$I$83:$Q$109,9,FALSE)+F41*VLOOKUP(O41,$I$83:$Q$109,9,FALSE)+F43*VLOOKUP(O43,$I$83:$Q$109,9,FALSE) -> 0 | Q27: =+G33*VLOOKUP(Q33,$I$83:$Q$109,5,FALSE)+G35*VLOOKUP(Q35,$I$83:$Q$109,5,FALSE)+G37*VLOOKUP(Q37,$I$83:$Q$109,5,FALSE)+G39*VLOOKUP(Q39,$I$83:$Q$109,9,FALSE)+G41*VLOOKUP(Q41,$I$83:$Q$109,9,FALSE)+G43*VLOOKUP(Q43,$I$83:$Q$109,9,FALSE) -> 0 | S27: =+H33*VLOOKUP(S33,$I$83:$Q$109,5,FALSE)+H35*VLOOKUP(S35,$I$83:$Q$109,5,FALSE)+H37*VLOOKUP(S37,$I$83:$Q$109,5,FALSE)+H39*VLOOKUP(S39,$I$83:$Q$109,9,FALSE)+H41*VLOOKUP(S41,$I$83:$Q$109,9,FALSE)+H43*VLOOKUP(S43,$I$83:$Q$109,9,FALSE) -> 0
A28: 8 | C28: Graduate Student Tuition | I28: Minimum | K28: =+C33*VLOOKUP(K33,$I$83:$Q$109,3,FALSE)+C35*VLOOKUP(K35,$I$83:$Q$109,3,FALSE)+C37*VLOOKUP(K37,$I$83:$Q$109,3,FALSE)+C39*VLOOKUP(K39,$I$83:$Q$109,7,FALSE)+C41*VLOOKUP(K41,$I$83:$Q$109,7,FALSE)+C43*VLOOKUP(K43,$I$83:$Q$109,7,FALSE) -> 0 | M28: =+E33*VLOOKUP(M33,$I$83:$Q$109,3,FALSE)+E35*VLOOKUP(M35,$I$83:$Q$109,3,FALSE)+E37*VLOOKUP(M37,$I$83:$Q$109,3,FALSE)+E39*VLOOKUP(M39,$I$83:$Q$109,7,FALSE)+E41*VLOOKUP(M41,$I$83:$Q$109,7,FALSE)+E43*VLOOKUP(M43,$I$83:$Q$109,7,FALSE) -> 0 | O28: =+F33*VLOOKUP(O33,$I$83:$Q$109,3,FALSE)+F35*VLOOKUP(O35,$I$83:$Q$109,3,FALSE)+F37*VLOOKUP(O37,$I$83:$Q$109,3,FALSE)+F39*VLOOKUP(O39,$I$83:$Q$109,7,FALSE)+F41*VLOOKUP(O41,$I$83:$Q$109,7,FALSE)+F43*VLOOKUP(O43,$I$83:$Q$109,7,FALSE) -> 0 | Q28: =+G33*VLOOKUP(Q33,$I$83:$Q$109,3,FALSE)+G35*VLOOKUP(Q35,$I$83:$Q$109,3,FALSE)+G37*VLOOKUP(Q37,$I$83:$Q$109,3,FALSE)+G39*VLOOKUP(Q39,$I$83:$Q$109,7,FALSE)+G41*VLOOKUP(Q41,$I$83:$Q$109,7,FALSE)+G43*VLOOKUP(Q43,$I$83:$Q$109,7,FALSE) -> 0 | S28: =+H33*VLOOKUP(S33,$I$83:$Q$109,3,FALSE)+H35*VLOOKUP(S35,$I$83:$Q$109,3,FALSE)+H37*VLOOKUP(S37,$I$83:$Q$109,3,FALSE)+H39*VLOOKUP(S39,$I$83:$Q$109,7,FALSE)+H41*VLOOKUP(S41,$I$83:$Q$109,7,FALSE)+H43*VLOOKUP(S43,$I$83:$Q$109,7,FALSE) -> 0
C31: Engineering Students Only
C32: Year 1 | E32: Year 2 | F32: Year 3 | G32: Year 4 | H32: Year 5
A33: Masters Students (enter no. of students per term) | I33: Summer | K33: Summer 2012 | M33: Summer 2013 | O33: Summer 2014 | Q33: Summer 2015 | S33: Summer 2016
C34: 1
I35: Fall | K35: Fall 2012 | M35: Fall 2013 | O35: Fall 2014 | Q35: Fall 2015 | S35: Fall 2016
I37: Spring | K37: Spring 2012 | M37: Spring 2013 | O37: Spring 2014 | Q37: Spring 2015 | S37: Spring 2016
C38: Year 1 | E38: Year 2 | F38: Year 3 | G38: Year 4 | H38: Year 5
A39: PhD Students (enter no. of students per term) | I39: Summer | K39: Summer 2012 | M39: Summer 2013 | O39: Summer 2014 | Q39: Summer 2015 | S39: Summer 2016
C41: 0 | E41: 0 | F41: 0 | G41: 0 | H41: 0 | I41: Fall | K41: Fall 2012 | M41: Fall 2013 | O41: Fall 2014 | Q41: Fall 2015 | S41: Fall 2016
C43: 0 | E43: 0 | F43: 0 | G43: 0 | H43: 0 | I43: Spring | K43: Spring 2013 | M43: Spring 2013 | O43: Spring 2014 | Q43: Spring 2015 | S43: Spring 2016
K49: Masters - Min | M49: Masters-Max | O49: PhD - Min | Q49: PhD - Max | S49: esc. Rate
S50: 1.042
S51: 1/4-time
S52: 1/2-time
I53: Fall 2012 | K53: 970 | M53: 1939 | O53: 1939 | Q53: 3878
I54: Fall 2013 | K54: 981 | M54: 1962 | O54: 1962 | Q54: 3924
I55: Fall 2014 | K55: =K54*$S$50 -> 1022.202 | M55: =M54*$S$50 -> 2044.404 | O55: =O54*$S$50 -> 2044.404 | Q55: =Q54*$S$50 -> 4088.808
I56: Fall 2015 | K56: 1065.134484 | M56: =M55*$S$50 -> 2130.268968 | O56: =O55*$S$50 -> 2130.268968 | Q56: =Q55*$S$50 -> 4260.537936
I57: Fall 2016 | K57: 1109.870132 | M57: 2219.740265 | O57: 2219.740265 | Q57: 4439.480529
I58: Fall 2017 | K58: 1156.484678 | M58: 2312.969356 | O58: 2312.969356 | Q58: 4625.938712
I59: Fall 2018 | K59: 1205.057034 | M59: 2410.114069 | O59: 2410.114069 | Q59: 4820.228137
I60: Fall 2019 | K60: 1255.66943 | M60: 2511.33886 | O60: 2511.33886 | Q60: 5022.677719
I62: Spring 2012 | K62: 935 | M62: 1869 | O62: 1869 | Q62: 3738
I63: Spring 2013 | K63: 970 | M63: 1939 | O63: 1939 | Q63: 3878
I64: Spring 2014 | K64: 981 | M64: 1962 | O64: 1962 | Q64: 3924
I65: Spring 2015 | K65: =K64*$S$50 -> 1022.202 | M65: =M64*$S$50 -> 2044.404 | O65: =O64*$S$50 -> 2044.404 | Q65: =Q64*$S$50 -> 4088.808
I66: Spring 2016 | K66: 1065.134484 | M66: 2130.268968 | O66: 2130.268968 | Q66: =Q65*$S$50 -> 4260.537936
I67: Spring 2017 | K67: 1109.870132 | M67: 2219.740265 | O67: 2219.740265 | Q67: 4439.480529
I68: Spring 2018 | K68: 1156.484678 | M68: 2312.969356 | O68: 2312.969356 | Q68: 4625.938712
I69: Spring 2019 | K69: 1205.057034 | M69: 2410.114069 | O69: 2410.114069 | Q69: 4820.228137
I71: Summer 2012 | K71: 539 | M71: 1078 | O71: 1078 | Q71: 2155
I72: Summer 2013 | K72: 545 | M72: 1090 | O72: 1090 | Q72: 2180
I73: Summer 2014 | K73: =K72*$S$50 -> 567.89 | M73: =M72*$S$50 -> 1135.78 | O73: =O72*$S$50 -> 1135.78 | Q73: =Q72*$S$50 -> 2271.56
I74: Summer 2015 | K74: =K73*$S$50 -> 591.74138 | M74: =M73*$S$50 -> 1183.48276 | O74: =O73*$S$50 -> 1183.48276 | Q74: =Q73*$S$50 -> 2366.96552
I75: Summer 2016 | K75: 616.594518 | M75: 1233.189036 | O75: 1233.189036 | Q75: 2466.378072
I76: Summer 2017 | K76: 642.4914877 | M76: 1284.982975 | O76: 1284.982975 | Q76: 2569.965951
I77: Summer 2018 | K77: 669.4761302 | M77: 1338.95226 | O77: 1338.95226 | Q77: 2677.904521
I78: Summer 2019 | K78: 697.5941277 | M78: 1395.188255 | O78: 1395.188255 | Q78: 2790.376511
I80: Engineering students
K81: Masters - Min | M81: Masters-Max | O81: PhD - Min | Q81: PhD - Max
I83: Fall 2012 | K83: 1118 | M83: 2235 | O83: 2235 | Q83: 4470
I84: Fall 2013 | K84: 1131 | M84: 2262 | O84: 2262 | Q84: 4523
I85: Fall 2014 | K85: =K84*$S$50 -> 1178.502 | M85: =M84*$S$50 -> 2357.004 | O85: =O84*$S$50 -> 2357.004 | Q85: =Q84*$S$50 -> 4712.966
I86: Fall 2015 | K86: =K85*$S$50 -> 1227.999084 | M86: =M85*$S$50 -> 2455.998168 | O86: =O85*$S$50 -> 2455.998168 | Q86: =Q85*$S$50 -> 4910.910572
I87: Fall 2016 | K87: 1279.575046 | M87: 2559.150091 | O87: 2559.150091 | Q87: 5117.168816
I88: Fall 2017 | K88: 1333.317197 | M88: 2666.634395 | O88: 2666.634395 | Q88: 5332.089906
I89: Fall 2018 | K89: 1389.31652 | M89: 2778.633039 | O89: 2778.633039 | Q89: 5556.037682
I90: Fall 2019 | K90: 1447.667814 | M90: 2895.335627 | O90: 2895.335627 | Q90: 5789.391265
K91: 0 | O91: 0
I92: Spring 2012 | K92: 1077 | M92: 2154 | O92: 2154 | Q92: 4308
I93: Spring 2013 | K93: 1118 | M93: 2235 | O93: 2235 | Q93: 4470
I94: Spring 2014 | K94: 1131 | M94: 2262 | O94: 2262 | Q94: 4523
I95: Spring 2015 | K95: =K94*$S$50 -> 1178.502 | M95: =M94*$S$50 -> 2357.004 | O95: =O94*$S$50 -> 2357.004 | Q95: =Q94*$S$50 -> 4712.966
I96: Spring 2016 | K96: =K95*$S$50 -> 1227.999084 | M96: =M95*$S$50 -> 2455.998168 | O96: 2455.998168 | Q96: =Q95*$S$50 -> 4910.910572
I97: Spring 2017 | K97: 1279.575046 | M97: 2559.150091 | O97: 2559.150091 | Q97: 5117.168816
I98: Spring 2018 | K98: 1333.317197 | M98: 2666.634395 | O98: 2666.634395 | Q98: 5332.089906
I99: Spring 2019 | K99: 1389.31652 | M99: 2778.633039 | O99: 2778.633039 | Q99: 5556.037682
K100: 0 | O100: 0
I101: Summer 2012 | K101: 621 | M101: 1243 | O101: 1243 | Q101: 2485
I102: Summer 2013 | K102: 629 | M102: 1258 | O102: 1258 | Q102: 2515
I103: Summer 2014 | K103: =K102*$S$50 -> 655.418 | M103: =M102*$S$50 -> 1310.836 | O103: =O102*$S$50 -> 1310.836 | Q103: =Q102*$S$50 -> 2620.63
I104: Summer 2015 | K104: =K103*$S$50 -> 682.945556 | M104: =M103*$S$50 -> 1365.891112 | O104: =O103*$S$50 -> 1365.891112 | Q104: =Q103*$S$50 -> 2730.69646
I105: Summer 2016 | K105: 711.6292694 | M105: 1423.258539 | O105: 1423.258539 | Q105: 2845.385711
I106: Summer 2017 | K106: 741.5176987 | M106: 1483.035397 | O106: 1483.035397 | Q106: 2964.891911
I107: Summer 2018 | K107: 772.661442 | M107: 1545.322884 | O107: 1545.322884 | Q107: 3089.417371
I108: Summer 2019 | K108: 805.1132226 | M108: 1610.226445 | O108: 1610.226445 | Q108: 3219.172901

Sheet Module1 (hidden)

Sheet BA Upload
A1: Sponsor: | B1: NSF
A2: Title:
A3: PI Name:
A4: Period of Performance:
A5: GoldSheet Number:
A6: Account Number:
A8: Budget Categories | B8: Budget Code | C8: Amount
A9: Salary/Hourly | B9: 0108 | C9: =ROUND(NSF5GPG!CJ44,0) -> 0
A10: Payroll Benefits | B10: 0130 | C10: =ROUND(NSF5GPG!CJ45,0) -> 0
A11: Equipment | B11: 0710 | C11: =ROUND(NSF5GPG!CJ53,0) -> 0
A12: Travel Domestic | B12: 0215 | C12: =ROUND(NSF5GPG!CJ54+NSF5GPG!CC60+NSF5GPG!CC61,0) -> 0
A13: Travel Foreign | B13: 0216 | C13: =ROUND(NSF5GPG!CJ55,0) -> 0
A14: Student Tuition | B14: 0610 | C14: =ROUND(NSF5GPG!CI71,0) -> 0
A15: Supplies | B15: 0410 | C15: =ROUND(NSF5GPG!CJ66,0) -> 0
A16: Subcontracts
A17: Subject to IDC | B17: 0396 | C17: =ROUND(NSF5GPG!CI70,0) -> 0
A18: Not Subejct to IDC | B18: 0376 | C18: =ROUND(NSF5GPG!CJ70-NSF5GPG!CI70,0) -> 0
A19: Other Direct Costs
A20: Telecom Charges | B20: 0340 | C20: 0
A21: Computer Usage | B21: 0353 | C21: =ROUND(NSF5GPG!CJ69,0) -> 0
A22: Printing/Copying | B22: 0373 | C22: =ROUND(NSF5GPG!CJ67,0) -> 0
A23: Services/Honoraria | B23: 0302 | C23: =ROUND(NSF5GPG!CJ68+NSF5GPG!CC59,0) -> 0
A24: Postage | B24: 0379 | C24: 0
A25: Other | B25: 0630 | C25: =ROUND(NSF5GPG!CJ71-NSF5GPG!CI71+NSF5GPG!CC62,0) -> 0
A26: Total Direct Costs | C26: =SUM(C9:C25) -> 0
A27: Indirect Costs | B27: 0642 | C27: =ROUND(NSF5GPG!CJ77,0) -> 0
A28: Total Costs | C28: =SUM(C26:C27) -> 0
